[Event "*** Titled Tuesday Blitz"]
[Site "Chess.com"]
[Date "2020.02.04"]
[Round "1"]
[White "guna1976"]
[Black "tarantul1"]
[Result "1/2-1/2"]
[WhiteElo "2235"]
[BlackElo "2605"]
[TimeControl "180+2"]
[EndTime "9:11:47 PST"]
[Termination "Game drawn by agreement"]

1. d4 {[%clk 0:03:01.9]} 1... Nf6 {[%clk 0:03:00.4]} 2. Nf3 {[%clk 0:03:02.1]}
2... d5 {[%clk 0:03:01.2]} 3. Bg5 {[%clk 0:03:01.6]} 3... Nbd7 {[%clk
0:02:53.8]} 4. Nbd2 {[%clk 0:03:00.5]} 4... c5 {[%clk 0:02:52.4]} 5. e3 {[%clk
0:03:00.3]} 5... Qb6 {[%clk 0:02:35.4]} 6. Rb1 {[%clk 0:02:58.3]} 6... e6 {[%clk
0:02:32.9]} 7. c3 {[%clk 0:02:57.5]} 7... Bd6 {[%clk 0:02:28.7]} 8. Bd3 {[%clk
0:02:57.5]} 8... O-O {[%clk 0:02:30]} 9. O-O {[%clk 0:02:57.3]} 9... h6 {[%clk
0:02:31.3]} 10. Bxf6 {[%clk 0:02:55]} 10... Nxf6 {[%clk 0:02:32.1]} 11. Qe2
{[%clk 0:02:52.4]} 11... Bd7 {[%clk 0:02:33]} 12. dxc5 {[%clk 0:02:43.1]} 12...
Bxc5 {[%clk 0:02:33.2]} 13. e4 {[%clk 0:02:43]} 13... dxe4 {[%clk 0:01:58.7]}
14. Nxe4 {[%clk 0:02:42.6]} 14... Be7 {[%clk 0:02:00.3]} 15. Ne5 {[%clk
0:02:31.9]} 15... Rfd8 {[%clk 0:01:49.5]} 16. Nxf6+ {[%clk 0:02:22.8]} 16...
Bxf6 {[%clk 0:01:51.4]} 17. Nxd7 {[%clk 0:02:23.1]} 17... Rxd7 {[%clk
0:01:53.3]} 18. Rbd1 {[%clk 0:02:22.9]} 18... Rad8 {[%clk 0:01:53]} 19. a4
{[%clk 0:02:16.3]} 19... g6 {[%clk 0:01:45.6]} 20. g3 {[%clk 0:02:05.7]} 20...
h5 {[%clk 0:01:43.3]} 21. Qc2 {[%clk 0:02:03.2]} 21... Kg7 {[%clk 0:01:42.6]}
22. Be2 {[%clk 0:02:02.1]} 22... Bg5 {[%clk 0:01:40.5]} 23. Rxd7 {[%clk
0:02:00.1]} 23... Rxd7 {[%clk 0:01:42.4]} 24. Rd1 {[%clk 0:02:00.8]} 24... Rxd1+
{[%clk 0:01:36.6]} 25. Bxd1 {[%clk 0:02:01.1]} 25... Qd6 {[%clk 0:01:20.7]} 26.
Bf3 {[%clk 0:02:00.5]} 26... b6 {[%clk 0:01:15]} 27. Qd1 {[%clk 0:01:44]} 27...
Qc5 {[%clk 0:00:57.4]} 28. Kg2 {[%clk 0:01:41.4]} 28... Bf6 {[%clk 0:00:40.7]}
29. h4 {[%clk 0:01:39.7]} 29... Qe5 {[%clk 0:00:41.1]} 30. Qd2 {[%clk 0:01:33]}
30... Be7 {[%clk 0:00:41.3]} 31. b4 {[%clk 0:01:23.6]} 31... a5 {[%clk
0:00:40.5]} 32. bxa5 {[%clk 0:01:21.7]} 32... Qxa5 {[%clk 0:00:39.9]} 33. Qc2
{[%clk 0:01:17.7]} 33... Bc5 {[%clk 0:00:33.5]} 34. c4 {[%clk 0:01:15.5]} 34...
Bd4 {[%clk 0:00:34.5]} 35. Be4 {[%clk 0:01:10.3]} 35... Qe1 {[%clk 0:00:34.1]}
36. Bf3 {[%clk 0:01:08.2]} 36... e5 {[%clk 0:00:29.2]} 37. Qe2 {[%clk
0:01:07.6]} 37... Qb4 {[%clk 0:00:27.9]} 38. Bc6 {[%clk 0:01:05.2]} 38... f5
{[%clk 0:00:26.6]} 39. Bb5 {[%clk 0:00:58.7]} 39... Qc3 {[%clk 0:00:27.5]} 40.
Qf3 {[%clk 0:00:53]} 40... Qd2 {[%clk 0:00:28.7]} 41. Qb7+ {[%clk 0:00:35.5]}
41... Kh6 {[%clk 0:00:29.8]} 42. Qf3 {[%clk 0:00:35.7]} 42... Bc5 {[%clk
0:00:31.3]} 43. Bc6 {[%clk 0:00:27.2]} 43... Kg7 {[%clk 0:00:32.1]} 44. Bb5
{[%clk 0:00:27.2]} 44... e4 {[%clk 0:00:23.6]} 45. Qf4 {[%clk 0:00:23.2]} 45...
Qxf4 {[%clk 0:00:24.6]} 46. gxf4 {[%clk 0:00:23.6]} 46... Bd6 {[%clk 0:00:25.9]}
47. Kg3 {[%clk 0:00:23.1]} 47... Bb4 {[%clk 0:00:27.4]} 48. Bc6 {[%clk
0:00:19.9]} 48... Kf6 {[%clk 0:00:28.1]} 49. Be8 {[%clk 0:00:20.5]} 49... Be1
{[%clk 0:00:28.9]} 50. Kg2 {[%clk 0:00:20.9]} 50... e3 {[%clk 0:00:16.9]} 51.
fxe3 {[%clk 0:00:21.1]} 51... Bxh4 {[%clk 0:00:18.8]} 52. Kf3 {[%clk 0:00:21.4]}
52... Kg7 {[%clk 0:00:18.8]} 53. Kg2 {[%clk 0:00:20.7]} 53... Be7 {[%clk
0:00:19.5]} 54. Kf3 {[%clk 0:00:21]} 54... Kf6 {[%clk 0:00:20.6]} 55. e4 {[%clk
0:00:20.7]} 55... fxe4+ {[%clk 0:00:21.5]} 56. Kxe4 {[%clk 0:00:21.1]} 56... Bd6
{[%clk 0:00:23.4]} 57. Kf3 {[%clk 0:00:21.7]} 57... Bb4 {[%clk 0:00:23.5]} 58.
Kg3 {[%clk 0:00:20.6]} 58... Kf5 {[%clk 0:00:21.2]} 59. Kf3 {[%clk 0:00:20.9]}
59... Bd2 {[%clk 0:00:18.7]} 60. Bd7+ {[%clk 0:00:21.9]} 60... Kf6 {[%clk
0:00:20.2]} 61. Be8 {[%clk 0:00:23]} 61... Bc1 {[%clk 0:00:22.1]} 62. Kg3 {[%clk
0:00:23.5]} 62... Ba3 {[%clk 0:00:22.2]} 63. Kf3 {[%clk 0:00:24.3]} 63... Bd6
{[%clk 0:00:24.1]} 64. Ke4 {[%clk 0:00:24.2]} 64... h4 {[%clk 0:00:25.5]} 65.
Bd7 {[%clk 0:00:24.9]} 65... Ke7 {[%clk 0:00:23.2]} 66. Bh3 {[%clk 0:00:22.3]}
66... Bc5 {[%clk 0:00:24.3]} 67. Bg4 {[%clk 0:00:22.5]} 67... Kf6 {[%clk
0:00:24.4]} 68. Bh3 {[%clk 0:00:23.5]} 68... Ba3 {[%clk 0:00:25.7]} 69. Bg4
{[%clk 0:00:24]} 69... Bc1 {[%clk 0:00:27.6]} 70. Bh3 {[%clk 0:00:24.5]} 70...
Ke7 {[%clk 0:00:29.1]} 71. Ke5 {[%clk 0:00:23.8]} 71... Be3 {[%clk 0:00:28.3]}
72. Ke4 {[%clk 0:00:24.5]} 72... Bd2 {[%clk 0:00:29.2]} 73. f5 {[%clk
0:00:25.4]} 73... g5 {[%clk 0:00:27.7]} 74. Ke5 {[%clk 0:00:25.5]} 74... Bc3+
{[%clk 0:00:27.1]} 75. Kd5 {[%clk 0:00:26.4]} 75... Bb4 {[%clk 0:00:25.5]} 76.
Kc6 {[%clk 0:00:27]} 76... Ba5 {[%clk 0:00:16.8]} 77. c5 {[%clk 0:00:27.7]}
77... bxc5 {[%clk 0:00:17.2]} 78. Kxc5 {[%clk 0:00:28.8]} 78... Kf6 {[%clk
0:00:13.5]} 79. Kd5 {[%clk 0:00:29.7]} 79... Be1 {[%clk 0:00:13.1]} 80. Ke4
{[%clk 0:00:30.4]} 80... Bc3 {[%clk 0:00:13.6]} 81. Kd5 {[%clk 0:00:30.4]} 81...
Be1 {[%clk 0:00:14.3]} 82. Bg4 {[%clk 0:00:31.2]} 82... Bc3 {[%clk 0:00:14.5]}
83. Ke4 {[%clk 0:00:32.3]} 1/2-1/2

[Event "*** Titled Tuesday Blitz"]
[Site "Chess.com"]
[Date "2020.02.04"]
[Round "1"]
[White "vlad_Sid"]
[Black "Ceejay271"]
[Result "1-0"]
[WhiteElo "2706"]
[BlackElo "2321"]
[TimeControl "180+2"]
[EndTime "9:12:12 PST"]
[Termination "vlad_Sid won by resignation"]

1. c4 {[%clk 0:02:49.6]} 1... e6 {[%clk 0:03:00.7]} 2. g3 {[%clk 0:02:48.2]}
2... d5 {[%clk 0:03:02.6]} 3. Bg2 {[%clk 0:02:48.2]} 3... Nf6 {[%clk 0:03:04.2]}
4. Nf3 {[%clk 0:02:48.2]} 4... Be7 {[%clk 0:03:05.2]} 5. O-O {[%clk 0:02:49.2]}
5... O-O {[%clk 0:03:06.8]} 6. b3 {[%clk 0:02:50.7]} 6... c5 {[%clk 0:03:07.2]}
7. Bb2 {[%clk 0:02:51.6]} 7... Nc6 {[%clk 0:03:07.9]} 8. e3 {[%clk 0:02:51.5]}
8... d4 {[%clk 0:03:00]} 9. exd4 {[%clk 0:02:51.1]} 9... cxd4 {[%clk 0:03:01.9]}
10. d3 {[%clk 0:02:52.2]} 10... e5 {[%clk 0:03:01.3]} 11. Re1 {[%clk 0:02:52.1]}
11... Nd7 {[%clk 0:02:59.6]} 12. Na3 {[%clk 0:02:51.6]} 12... f6 {[%clk
0:02:57.1]} 13. Nc2 {[%clk 0:02:50.9]} 13... a5 {[%clk 0:02:57.4]} 14. Nd2
{[%clk 0:02:47.8]} 14... Nc5 {[%clk 0:02:52.7]} 15. Ne4 {[%clk 0:02:46.7]} 15...
Ne6 {[%clk 0:02:48.3]} 16. a3 {[%clk 0:02:32.6]} 16... f5 {[%clk 0:02:47]} 17.
Nd2 {[%clk 0:02:33.8]} 17... Nc5 {[%clk 0:02:47.5]} 18. Bf1 {[%clk 0:02:30.1]}
18... Na6 {[%clk 0:02:29.8]} 19. Nf3 {[%clk 0:02:26.6]} 19... Bf6 {[%clk
0:02:29.1]} 20. Rb1 {[%clk 0:02:24.2]} 20... Re8 {[%clk 0:02:28.9]} 21. Ba1
{[%clk 0:02:10]} 21... Qd6 {[%clk 0:02:27.7]} 22. Bg2 {[%clk 0:02:04.3]} 22...
Be6 {[%clk 0:02:24.3]} 23. Qd2 {[%clk 0:01:57.2]} 23... Rad8 {[%clk 0:01:28]}
24. Ng5 {[%clk 0:01:32.2]} 24... Bxg5 {[%clk 0:01:18.1]} 25. Qxg5 {[%clk
0:01:34.1]} 25... Nc5 {[%clk 0:01:15.2]} 26. Qd2 {[%clk 0:01:25.2]} 26... a4
{[%clk 0:01:15.3]} 27. bxa4 {[%clk 0:01:20]} 27... Ra8 {[%clk 0:01:10.2]} 28.
Nb4 {[%clk 0:00:57.3]} 28... Rxa4 {[%clk 0:01:07.4]} 29. Nxc6 {[%clk 0:00:41]}
29... bxc6 {[%clk 0:01:08.2]} 30. Rb6 {[%clk 0:00:42.3]} 30... Bd7 {[%clk
0:01:05.4]} 31. Bb2 {[%clk 0:00:32.4]} 31... Qc7 {[%clk 0:00:59.4]} 32. Rb4
{[%clk 0:00:31.9]} 32... Raa8 {[%clk 0:00:52.5]} 33. f4 {[%clk 0:00:24.7]} 33...
exf4 {[%clk 0:00:46.3]} 34. Rxe8+ {[%clk 0:00:26.6]} 34... Rxe8 {[%clk
0:00:42.2]} 35. Bxd4 {[%clk 0:00:28.5]} 35... Qd6 {[%clk 0:00:26.5]} 36. Bxc5
{[%clk 0:00:25.4]} 36... Qxc5+ {[%clk 0:00:27.1]} 37. d4 {[%clk 0:00:26.9]}
37... Qd6 {[%clk 0:00:25.8]} 38. Qxf4 {[%clk 0:00:26.7]} 38... Re1+ {[%clk
0:00:23.1]} 39. Kf2 {[%clk 0:00:21.5]} 39... Qe7 {[%clk 0:00:20.8]} 40. Bf3
{[%clk 0:00:22.7]} 40... Ra1 {[%clk 0:00:19.7]} 41. Rb8+ {[%clk 0:00:23.2]}
41... Kf7 {[%clk 0:00:20.7]} 42. Qe5 {[%clk 0:00:13.8]} 42... Qxe5 {[%clk
0:00:20.9]} 43. dxe5 {[%clk 0:00:15.7]} 43... Rxa3 {[%clk 0:00:22.5]} 44. Rb7
{[%clk 0:00:16.4]} 44... Ke8 {[%clk 0:00:23.2]} 45. e6 {[%clk 0:00:13]} 45...
Bxe6 {[%clk 0:00:24.2]} 46. Rxg7 {[%clk 0:00:14.4]} 46... Bxc4 {[%clk
0:00:24.4]} 47. Bxc6+ {[%clk 0:00:15.8]} 47... Kf8 {[%clk 0:00:25.1]} 48. Rxh7
{[%clk 0:00:16.8]} 48... Ra2+ {[%clk 0:00:25.8]} 49. Ke3 {[%clk 0:00:15.8]}
49... Kg8 {[%clk 0:00:26.5]} 50. Rh4 {[%clk 0:00:16.1]} 50... Be6 {[%clk
0:00:26.9]} 51. Kf4 {[%clk 0:00:13.2]} 51... Rf2+ {[%clk 0:00:26.1]} 52. Kg5
{[%clk 0:00:14.3]} 52... Kg7 {[%clk 0:00:25.4]} 53. Be8 {[%clk 0:00:12.6]} 53...
Bd5 {[%clk 0:00:21.6]} 54. Bg6 {[%clk 0:00:10.8]} 54... Be4 {[%clk 0:00:20]} 55.
Rh7+ {[%clk 0:00:11.7]} 55... Kg8 {[%clk 0:00:21.5]} 56. Kf6 {[%clk 0:00:12.9]}
56... f4 {[%clk 0:00:20.1]} 57. g4 {[%clk 0:00:14]} 57... Bxg6 {[%clk
0:00:20.2]} 58. Kxg6 {[%clk 0:00:15.9]} 58... Ra2 {[%clk 0:00:20.1]} 59. Rc7
{[%clk 0:00:13.9]} 59... Ra6+ {[%clk 0:00:19.5]} 60. Kg5 {[%clk 0:00:14.9]}
60... Ra2 {[%clk 0:00:20.6]} 61. h4 {[%clk 0:00:14.6]} 61... f3 {[%clk
0:00:22.1]} 62. Rc8+ {[%clk 0:00:14.4]} 62... Kg7 {[%clk 0:00:22.9]} 63. Rc7+
{[%clk 0:00:15.4]} 63... Kg8 {[%clk 0:00:24]} 64. Rc5 {[%clk 0:00:15.3]} 64...
f2 {[%clk 0:00:24.4]} 65. Rf5 {[%clk 0:00:16.7]} 65... Kg7 {[%clk 0:00:25.3]}
66. Rf3 {[%clk 0:00:14.8]} 66... Rb2 {[%clk 0:00:21.6]} 67. Kf4 {[%clk
0:00:15.1]} 67... Kg6 {[%clk 0:00:22.3]} 68. Kg3 {[%clk 0:00:16.5]} 68... f1=Q
{[%clk 0:00:07.6]} 69. Rxf1 {[%clk 0:00:16.9]} 69... Rb4 {[%clk 0:00:09.5]} 70.
Rf3 {[%clk 0:00:16.9]} 70... Ra4 {[%clk 0:00:10.1]} 71. Rb3 {[%clk 0:00:17.6]}
71... Rc4 {[%clk 0:00:10.5]} 72. h5+ {[%clk 0:00:18.6]} 72... Kg5 {[%clk
0:00:11.4]} 73. Rb5+ {[%clk 0:00:18.2]} 73... Kh6 {[%clk 0:00:12.6]} 74. Kh4
{[%clk 0:00:20.1]} 74... Ra4 {[%clk 0:00:13.2]} 75. Rb6+ {[%clk 0:00:20.9]}
75... Kg7 {[%clk 0:00:14.6]} 76. h6+ {[%clk 0:00:19]} 76... Kh7 {[%clk
0:00:15.5]} 77. Kh5 {[%clk 0:00:19.6]} 77... Ra5+ {[%clk 0:00:14.1]} 78. g5
{[%clk 0:00:20.4]} 78... Ra8 {[%clk 0:00:12.4]} 79. Rd6 {[%clk 0:00:20.1]} 79...
Kg8 {[%clk 0:00:12.7]} 80. Rd7 {[%clk 0:00:20.4]} 80... Rb8 {[%clk 0:00:13.1]}
81. g6 {[%clk 0:00:20]} 81... Rb5+ {[%clk 0:00:13.2]} 82. Kg4 {[%clk 0:00:20.8]}
82... Rb4+ {[%clk 0:00:14.6]} 83. Kf5 {[%clk 0:00:21.8]} 83... Rb5+ {[%clk
0:00:15.8]} 84. Ke6 {[%clk 0:00:20.1]} 84... Rb6+ {[%clk 0:00:17.1]} 85. Rd6
{[%clk 0:00:21.3]} 85... Rb8 {[%clk 0:00:18]} 86. Ke7 {[%clk 0:00:20.5]} 86...
Rb7+ {[%clk 0:00:18]} 87. Rd7 {[%clk 0:00:21]} 1-0

[Event "*** Titled Tuesday Blitz"]
[Site "Chess.com"]
[Date "2020.02.04"]
[Round "1"]
[White "rasmussvane"]
[Black "CrgKrishna"]
[Result "1/2-1/2"]
[WhiteElo "2848"]
[BlackElo "2474"]
[TimeControl "180+2"]
[EndTime "9:14:24 PST"]
[Termination "Game drawn by stalemate"]

1. Nf3 {[%clk 0:03:00.3]} 1... f5 {[%clk 0:03:00.3]} 2. d3 {[%clk 0:03:00.7]}
2... d6 {[%clk 0:03:01]} 3. e4 {[%clk 0:03:00.6]} 3... e5 {[%clk 0:03:01.8]} 4.
Nc3 {[%clk 0:02:59.2]} 4... Nc6 {[%clk 0:03:02.7]} 5. exf5 {[%clk 0:02:55.8]}
5... Nge7 {[%clk 0:03:03.1]} 6. d4 {[%clk 0:02:44.6]} 6... exd4 {[%clk
0:03:03.5]} 7. Nxd4 {[%clk 0:02:46.5]} 7... Nxd4 {[%clk 0:03:04.8]} 8. Qxd4
{[%clk 0:02:48.4]} 8... Nxf5 {[%clk 0:03:06.4]} 9. Qe4+ {[%clk 0:02:46.2]} 9...
Qe7 {[%clk 0:03:06.1]} 10. Bd3 {[%clk 0:02:34.3]} 10... Qxe4+ {[%clk 0:03:04.3]}
11. Nxe4 {[%clk 0:02:32.1]} 11... d5 {[%clk 0:03:03.4]} 12. Ng3 {[%clk
0:02:30.6]} 12... Nh4 {[%clk 0:02:53.4]} 13. O-O {[%clk 0:02:25.6]} 13... Bc5
{[%clk 0:02:52.6]} 14. Bg5 {[%clk 0:02:21.4]} 14... Ng6 {[%clk 0:02:50.7]} 15.
c4 {[%clk 0:02:13.3]} 15... d4 {[%clk 0:02:40.2]} 16. Ne4 {[%clk 0:01:31.8]}
16... Be7 {[%clk 0:02:39.7]} 17. Rae1 {[%clk 0:01:27.1]} 17... Kf8 {[%clk
0:02:36.7]} 18. f4 {[%clk 0:01:22.1]} 18... Bf5 {[%clk 0:02:33]} 19. Nc5 {[%clk
0:01:14.8]} 19... Bxd3 {[%clk 0:02:27.9]} 20. Nxd3 {[%clk 0:01:16.7]} 20... Rd8
{[%clk 0:02:23.4]} 21. Re4 {[%clk 0:01:01.4]} 21... b6 {[%clk 0:02:18.2]} 22. f5
{[%clk 0:00:49.2]} 22... Bxg5 {[%clk 0:02:15.6]} 23. fxg6+ {[%clk 0:00:50.5]}
23... Bf6 {[%clk 0:02:15.7]} 24. Nf4 {[%clk 0:00:48.9]} 24... Re8 {[%clk
0:02:14.4]} 25. Ne6+ {[%clk 0:00:45.5]} 25... Kg8 {[%clk 0:02:13.8]} 26. Ng5
{[%clk 0:00:37.4]} 26... Rxe4 {[%clk 0:02:09.2]} 27. Nxe4 {[%clk 0:00:39.3]}
27... hxg6 {[%clk 0:01:55]} 28. Nxf6+ {[%clk 0:00:39.9]} 28... gxf6 {[%clk
0:01:56.9]} 29. Rxf6 {[%clk 0:00:41.8]} 29... c5 {[%clk 0:00:52.4]} 30. Rxg6+
{[%clk 0:00:42.9]} 30... Kf7 {[%clk 0:00:53.7]} 31. Rg3 {[%clk 0:00:44.5]} 31...
Re8 {[%clk 0:00:54]} 32. Kf2 {[%clk 0:00:44.9]} 32... Kf6 {[%clk 0:00:52]} 33.
Ra3 {[%clk 0:00:43.7]} 33... Re7 {[%clk 0:00:47.8]} 34. h4 {[%clk 0:00:41.7]}
34... Kf5 {[%clk 0:00:47.1]} 35. Kf3 {[%clk 0:00:41.5]} 35... Rd7 {[%clk
0:00:41.4]} 36. g4+ {[%clk 0:00:41.9]} 36... Ke5 {[%clk 0:00:42.9]} 37. Rd3
{[%clk 0:00:41.5]} 37... Rf7+ {[%clk 0:00:43.3]} 38. Kg3 {[%clk 0:00:42.5]}
38... Ke4 {[%clk 0:00:44.3]} 39. Rd1 {[%clk 0:00:43.6]} 39... Rf3+ {[%clk
0:00:44]} 40. Kg2 {[%clk 0:00:44]} 40... Kf4 {[%clk 0:00:43.1]} 41. g5 {[%clk
0:00:42.5]} 41... Kg4 {[%clk 0:00:37.3]} 42. g6 {[%clk 0:00:29.3]} 42... Rf8
{[%clk 0:00:13.7]} 43. Rh1 {[%clk 0:00:29.1]} 43... Kh5 {[%clk 0:00:12.8]} 44.
g7 {[%clk 0:00:30.2]} 44... Rg8 {[%clk 0:00:13.6]} 45. Kf3 {[%clk 0:00:31.7]}
45... Rxg7 {[%clk 0:00:15]} 46. Rh2 {[%clk 0:00:33.1]} 46... Re7 {[%clk
0:00:15.7]} 47. Kf4 {[%clk 0:00:29.2]} 47... Re1 {[%clk 0:00:15.9]} 48. Rg2
{[%clk 0:00:28.1]} 48... Rf1+ {[%clk 0:00:15.5]} 49. Kg3 {[%clk 0:00:27]} 49...
Rc1 {[%clk 0:00:14.3]} 50. b3 {[%clk 0:00:27.8]} 50... Rc3+ {[%clk 0:00:15.8]}
51. Kf4 {[%clk 0:00:26.4]} 51... Kxh4 {[%clk 0:00:17.1]} 52. Rh2+ {[%clk
0:00:25.3]} 52... Rh3 {[%clk 0:00:17.3]} 53. Rg2 {[%clk 0:00:23]} 53... Re3
{[%clk 0:00:13.1]} 54. Rh2+ {[%clk 0:00:21.9]} 54... Rh3 {[%clk 0:00:13.5]} 55.
Rg2 {[%clk 0:00:23.8]} 55... Rh1 {[%clk 0:00:13.3]} 56. Rg7 {[%clk 0:00:24.6]}
56... Kh3 {[%clk 0:00:12.9]} 57. Rxa7 {[%clk 0:00:24.1]} 57... Re1 {[%clk
0:00:11.3]} 58. Kf3 {[%clk 0:00:25.4]} 58... Kh4 {[%clk 0:00:06]} 59. Rb7 {[%clk
0:00:25.7]} 59... Re3+ {[%clk 0:00:06.6]} 60. Kf2 {[%clk 0:00:25.6]} 60... Re6
{[%clk 0:00:07.3]} 61. Kf3 {[%clk 0:00:22.2]} 61... Kg5 {[%clk 0:00:08.1]} 62.
a3 {[%clk 0:00:23.4]} 62... Kf5 {[%clk 0:00:08.9]} 63. Kf2 {[%clk 0:00:23.2]}
63... Ke4 {[%clk 0:00:09.8]} 64. Ke2 {[%clk 0:00:23.8]} 64... Rh6 {[%clk
0:00:08.9]} 65. Re7+ {[%clk 0:00:21.8]} 65... Kf4 {[%clk 0:00:10]} 66. b4 {[%clk
0:00:18.9]} 66... Rh2+ {[%clk 0:00:10.6]} 67. Kd1 {[%clk 0:00:19.4]} 67... Ra2
{[%clk 0:00:10.4]} 68. Re6 {[%clk 0:00:08.8]} 68... Rxa3 {[%clk 0:00:09.9]} 69.
Rxb6 {[%clk 0:00:09.5]} 69... Ke3 {[%clk 0:00:09]} 70. bxc5 {[%clk 0:00:10.8]}
70... Ra1+ {[%clk 0:00:09.7]} 71. Kc2 {[%clk 0:00:12.2]} 71... d3+ {[%clk
0:00:11]} 72. Kb2 {[%clk 0:00:13.7]} 72... d2 {[%clk 0:00:11.7]} 73. Re6+ {[%clk
0:00:14.8]} 73... Kf4 {[%clk 0:00:12.7]} 74. Kxa1 {[%clk 0:00:14]} 74... d1=Q+
{[%clk 0:00:12.9]} 75. Kb2 {[%clk 0:00:15.6]} 75... Qd4+ {[%clk 0:00:12.1]} 76.
Kb3 {[%clk 0:00:16.9]} 76... Qxc5 {[%clk 0:00:12.9]} 77. Re2 {[%clk 0:00:15.7]}
77... Kf3 {[%clk 0:00:13.6]} 78. Rd2 {[%clk 0:00:15]} 78... Ke3 {[%clk
0:00:13.4]} 79. Rd5 {[%clk 0:00:15.5]} 79... Qc6 {[%clk 0:00:14.5]} 80. Kc3
{[%clk 0:00:14.5]} 80... Qa4 {[%clk 0:00:14.4]} 81. Rd3+ {[%clk 0:00:14]} 81...
Ke2 {[%clk 0:00:15]} 82. Rd5 {[%clk 0:00:15.6]} 82... Qa3+ {[%clk 0:00:13]} 83.
Kc2 {[%clk 0:00:16.8]} 83... Ke3 {[%clk 0:00:13.8]} 84. Rb5 {[%clk 0:00:08.2]}
84... Kd4 {[%clk 0:00:13.6]} 85. Rd5+ {[%clk 0:00:09.2]} 85... Kxc4 {[%clk
0:00:13.8]} 86. Rd2 {[%clk 0:00:08.7]} 86... Qa2+ {[%clk 0:00:12.8]} 87. Kd1
{[%clk 0:00:08.8]} 87... Qb1+ {[%clk 0:00:12.3]} 88. Ke2 {[%clk 0:00:10.2]}
88... Qf5 {[%clk 0:00:13.1]} 89. Ke1 {[%clk 0:00:08.2]} 89... Qf3 {[%clk
0:00:13]} 90. Rf2 {[%clk 0:00:08.3]} 90... Qg3 {[%clk 0:00:12.5]} 91. Ke2 {[%clk
0:00:09.1]} 91... Kd4 {[%clk 0:00:13.4]} 92. Rf3 {[%clk 0:00:06.1]} 92... Qg2+
{[%clk 0:00:12.9]} 93. Rf2 {[%clk 0:00:07.4]} 93... Qh1 {[%clk 0:00:12.9]} 94.
Kd2 {[%clk 0:00:06.8]} 94... Qb1 {[%clk 0:00:09.9]} 95. Ke2 {[%clk 0:00:06.9]}
95... Ke4 {[%clk 0:00:10.3]} 96. Rg2 {[%clk 0:00:08.3]} 96... Qc1 {[%clk
0:00:07.4]} 97. Rf2 {[%clk 0:00:08.7]} 97... Qe3+ {[%clk 0:00:04.1]} 98. Kf1
{[%clk 0:00:09.6]} 98... Qg3 {[%clk 0:00:05.6]} 99. Ke2 {[%clk 0:00:10.8]} 99...
Qd3+ {[%clk 0:00:05.8]} 100. Ke1 {[%clk 0:00:11.8]} 100... Ke3 {[%clk
0:00:06.8]} 101. Rf3+ {[%clk 0:00:12.7]} 101... Kxf3 {[%clk 0:00:08.3]} 1/2-1/2

[Event "*** Titled Tuesday Blitz"]
[Site "Chess.com"]
[Date "2020.02.04"]
[Round "2"]
[White "Indianlad"]
[Black "ChristopherYoo"]
[Result "1-0"]
[WhiteElo "2898"]
[BlackElo "2607"]
[TimeControl "180+2"]
[EndTime "9:18:18 PST"]
[Termination "Indianlad won by resignation"]

1. e4 {[%clk 0:03:01.6]} 1... c5 {[%clk 0:02:56.1]} 2. Nc3 {[%clk 0:03:02.4]}
2... d6 {[%clk 0:02:56]} 3. f4 {[%clk 0:03:03.7]} 3... Nc6 {[%clk 0:02:56.7]} 4.
Nf3 {[%clk 0:03:04.8]} 4... g6 {[%clk 0:02:57.9]} 5. Bc4 {[%clk 0:03:02.8]} 5...
Bg7 {[%clk 0:02:58.7]} 6. O-O {[%clk 0:03:04.3]} 6... e6 {[%clk 0:02:59.6]} 7.
d4 {[%clk 0:03:05.4]} 7... cxd4 {[%clk 0:02:57.1]} 8. Nb5 {[%clk 0:03:06.7]}
8... Nge7 {[%clk 0:02:47.9]} 9. Bb3 {[%clk 0:03:07.8]} 9... a6 {[%clk
0:02:44.2]} 10. Nbxd4 {[%clk 0:03:09.2]} 10... Nxd4 {[%clk 0:02:45.2]} 11. Nxd4
{[%clk 0:03:09.8]} 11... Nc6 {[%clk 0:02:41.6]} 12. c3 {[%clk 0:03:10.4]} 12...
Bd7 {[%clk 0:02:15.4]} 13. Be3 {[%clk 0:03:11]} 13... b5 {[%clk 0:01:45]} 14. f5
{[%clk 0:03:11.6]} 14... Qe7 {[%clk 0:01:23.3]} 15. fxe6 {[%clk 0:03:03.8]}
15... fxe6 {[%clk 0:01:23.3]} 16. Nxc6 {[%clk 0:03:05.5]} 16... Bxc6 {[%clk
0:01:24]} 17. Qg4 {[%clk 0:03:07.2]} 17... Kd7 {[%clk 0:00:44.8]} 18. Bxe6+
{[%clk 0:03:05]} 1-0

[Event "*** Titled Tuesday Blitz"]
[Site "Chess.com"]
[Date "2020.02.04"]
[Round "2"]
[White "Lagravesamuell"]
[Black "LastGladiator1"]
[Result "0-1"]
[WhiteElo "2583"]
[BlackElo "2822"]
[TimeControl "180+2"]
[EndTime "9:18:58 PST"]
[Termination "LastGladiator1 won by resignation"]

1. d4 {[%clk 0:03:00]} 1... Nf6 {[%clk 0:02:57.2]} 2. Nf3 {[%clk 0:03:00.9]}
2... d6 {[%clk 0:02:56.9]} 3. Nbd2 {[%clk 0:03:01.5]} 3... Bf5 {[%clk
0:02:55.5]} 4. c3 {[%clk 0:02:46.4]} 4... Nbd7 {[%clk 0:02:50.4]} 5. Qb3 {[%clk
0:02:46.3]} 5... Nb6 {[%clk 0:02:48.7]} 6. a4 {[%clk 0:02:40.4]} 6... a5 {[%clk
0:02:49]} 7. g3 {[%clk 0:02:40.9]} 7... h6 {[%clk 0:02:44]} 8. Bg2 {[%clk
0:02:41.2]} 8... Bh7 {[%clk 0:02:44.4]} 9. O-O {[%clk 0:02:42.2]} 9... e6 {[%clk
0:02:41.3]} 10. Re1 {[%clk 0:02:22.4]} 10... Be7 {[%clk 0:02:37.3]} 11. e4
{[%clk 0:02:23.1]} 11... d5 {[%clk 0:02:38]} 12. exd5 {[%clk 0:02:12.2]} 12...
Nfxd5 {[%clk 0:02:26.6]} 13. Ne5 {[%clk 0:02:13]} 13... O-O {[%clk 0:02:23.3]}
14. Ne4 {[%clk 0:02:13.6]} 14... Rb8 {[%clk 0:02:20.8]} 15. Bd2 {[%clk
0:01:57.8]} 15... c6 {[%clk 0:02:15.9]} 16. Nc5 {[%clk 0:01:35.6]} 16... Bxc5
{[%clk 0:02:10.6]} 17. dxc5 {[%clk 0:01:36.8]} 17... f6 {[%clk 0:02:04.7]} 18.
Nf3 {[%clk 0:01:27.2]} 18... Nd7 {[%clk 0:02:01.5]} 19. Rxe6 {[%clk 0:01:26.9]}
19... Nxc5 {[%clk 0:02:00.8]} 0-1

[Event "*** Titled Tuesday Blitz"]
[Site "Chess.com"]
[Date "2020.02.04"]
[Round "2"]
[White "cholzan"]
[Black "Alexander_Donchenko"]
[Result "0-1"]
[WhiteElo "2498"]
[BlackElo "2731"]
[TimeControl "180+2"]
[EndTime "9:19:45 PST"]
[Termination "Alexander_Donchenko won by resignation"]

1. d4 {[%clk 0:03:01.9]} 1... d5 {[%clk 0:03:00.7]} 2. c4 {[%clk 0:03:02.4]}
2... e6 {[%clk 0:03:02.2]} 3. Nf3 {[%clk 0:02:55.8]} 3... a6 {[%clk 0:03:01.8]}
4. g3 {[%clk 0:02:56]} 4... dxc4 {[%clk 0:03:02]} 5. a4 {[%clk 0:02:56.7]} 5...
Nc6 {[%clk 0:03:01.7]} 6. Bg2 {[%clk 0:02:57.6]} 6... Rb8 {[%clk 0:02:57.9]} 7.
O-O {[%clk 0:02:57.9]} 7... b5 {[%clk 0:02:57.5]} 8. Nc3 {[%clk 0:02:58.8]} 8...
Nf6 {[%clk 0:02:56.2]} 9. Bf4 {[%clk 0:02:39.9]} 9... b4 {[%clk 0:02:53.6]} 10.
Nb1 {[%clk 0:02:34.6]} 10... Nd5 {[%clk 0:02:52.1]} 11. Qc1 {[%clk 0:02:12.8]}
11... Na5 {[%clk 0:02:47.5]} 12. Ne5 {[%clk 0:02:06.4]} 12... Bd6 {[%clk
0:02:31.9]} 13. Nxc4 {[%clk 0:01:56.8]} 13... Bxf4 {[%clk 0:02:27.7]} 14. gxf4
{[%clk 0:01:58]} 14... Nb3 {[%clk 0:02:28.7]} 15. Qd1 {[%clk 0:01:54.7]} 15...
Nxa1 {[%clk 0:02:29.2]} 16. e3 {[%clk 0:01:31.6]} 16... b3 {[%clk 0:02:26.9]}
17. Na5 {[%clk 0:01:31.1]} 17... Bd7 {[%clk 0:02:23.3]} 18. Nd2 {[%clk
0:01:26.9]} 18... Nc2 {[%clk 0:02:22.2]} 19. Ndxb3 {[%clk 0:01:26]} 19... Ncb4
{[%clk 0:02:18.2]} 20. Nc5 {[%clk 0:01:25.5]} 20... O-O {[%clk 0:02:16.7]} 21.
Qh5 {[%clk 0:01:20.5]} 21... Nc6 {[%clk 0:01:49.9]} 22. Nxd7 {[%clk 0:01:05.7]}
22... Qxd7 {[%clk 0:01:48.3]} 23. Be4 {[%clk 0:01:06.4]} 23... g6 {[%clk
0:01:38.3]} 0-1